bitfinex/quotes_BTCUSD_20250414
["timestamp","ask_amount","ask_price","bid_price","bid_amount"]
[1744662585410,0.0010006,84555.0,84554.0,0.84797654]
[1744662586117,6e-07,84555.0,84554.0,0.86251739]
[1744662586313,0.0499452,84580.0,84561.0,0.34]
[1744662586314,8e-07,84563.0,84561.0,0.34]
[1744662586510,8e-07,84563.0,84562.0,0.9732581]
[1744662586715,8e-07,84563.0,84562.0,0.97089366]
[1744662587953,8e-07,84563.0,84562.0,1.11249366]
[1744662588278,8e-07,84563.0,84562.0,1.11649366]
[1744662588779,8e-07,84563.0,84562.0,1.11949366]
[1744662590337,8e-07,84563.0,84562.0,1.12049366]
[1744662596782,8e-07,84563.0,84562.0,1.17049366]
[1744662598239,8e-07,84563.0,84562.0,1.16749366]
[1744662598782,8e-07,84563.0,84562.0,1.11649366]
[1744662598988,8e-07,84563.0,84562.0,1.07129366]
[1744662599236,8e-07,84563.0,84562.0,1.12129366]
[1744662600569,8e-07,84563.0,84562.0,1.12229366]
[1744662601000,8e-07,84563.0,84562.0,1.12129366]
[1744662601328,8e-07,84563.0,84562.0,1.07329366]
[1744662602085,8e-07,84563.0,84562.0,1.12329366]
[1744662602927,8e-07,84563.0,84562.0,1.12429366]
[1744662603685,8e-07,84563.0,84562.0,1.22009366]
[1744662604089,8e-07,84563.0,84562.0,1.22885702]
[1744662604283,8e-07,84563.0,84562.0,1.22285702]
[1744662604484,8e-07,84563.0,84562.0,1.22585702]
[1744662604683,8e-07,84563.0,84562.0,1.22985702]
[1744662604900,2e-07,84584.0,84583.0,0.35454085]
[1744662605184,0.00046108,84584.0,84583.0,1.06571566]
[1744662605972,0.00046108,84584.0,84583.0,1.07736027]
[1744662606815,0.0468,84596.0,84583.0,1.07736027]
[1744662606816,4.8e-07,84590.0,84589.0,0.236437]
[1744662607029,9.306e-05,84590.0,84589.0,0.71181939]
[1744662607230,6e-08,84590.0,84589.0,0.71281939]
[1744662608124,0.00074496,84597.0,84596.0,0.576417]
[1744662608301,1.6e-07,84603.0,84602.0,0.576401]
[1744662608507,1.6e-07,84603.0,84602.0,0.69724254]
[1744662610410,1.6e-07,84603.0,84602.0,0.69924254]
[1744662611334,0.00300016,84603.0,84602.0,0.69924254]
[1744662612723,0.05130016,84603.0,84602.0,0.69924254]
[1744662614422,0.28769816,84603.0,84602.0,0.002]
[1744662614642,0.33669816,84603.0,84602.0,0.002]
[1744662614839,0.10030016,84603.0,84602.0,0.002]
[1744662615263,0.10030016,84603.0,84602.0,0.238401]
[1744662619299,0.00300016,84603.0,84602.0,0.35924254]
[1744662624720,0.04970016,84603.0,84602.0,0.002]
[1744662625301,0.28609816,84603.0,84602.0,0.002]
[1744662625657,0.28609816,84603.0,84602.0,0.238401]
[1744662625658,0.04970016,84603.0,84602.0,0.238401]
[1744662627484,0.0497,84603.0,84602.0,0.238401]
[1744662629284,0.003,84603.0,84602.0,0.35924254]
[1744662629442,0.003,84603.0,84602.0,0.69924254]
[1744662630289,0.003,84603.0,84602.0,0.69724254]
[1744662630507,0.003,84603.0,84602.0,0.69924254]
[1744662631045,0.0008448,84604.0,84603.0,0.576398]
[1744662631248,0.0008448,84604.0,84603.0,0.69723954]
[1744662633287,0.0008448,84604.0,84603.0,0.70123954]
[1744662634485,0.0008448,84604.0,84603.0,0.580398]
[1744662634709,0.0469448,84604.0,84603.0,0.240398]
[1744662635471,0.0499448,84604.0,84603.0,0.240398]
[1744662636337,0.0038448,84604.0,84603.0,0.35723954]
[1744662636546,0.0038448,84604.0,84603.0,0.35923954]
[1744662639860,0.0038448,84604.0,84603.0,0.69923954]
[1744662640189,8e-07,84604.0,84603.0,0.71378039]
[1744662640462,1e-06,84611.0,84610.0,0.576378]
[1744662640762,1e-06,84611.0,84610.0,0.69721954]
[1744662641831,0.003001,84611.0,84610.0,0.69721954]
[1744662642030,0.003001,84611.0,84610.0,0.71176039]
[1744662642380,1e-06,84611.0,84610.0,0.71176039]
[1744662642792,0.002001,84611.0,84610.0,0.71376039]
[1744662643193,0.002001,84611.0,84610.0,0.71176039]
[1744662643396,0.0463,84633.0,84610.0,0.47538239]
[1744662643601,0.0463,84633.0,84613.0,0.71175239]
[1744662644401,0.000844,84637.0,84613.0,0.75955239]
[1744662646041,0.00093733,84614.0,84613.0,0.75955239]
[1744662646922,0.00093733,84614.0,84613.0,0.76155239]
[1744662648552,0.00093733,84614.0,84613.0,0.75955239]
[1744662648735,0.00093733,84614.0,84613.0,0.76255239]
[1744662651270,0.00093733,84614.0,84613.0,0.71475239]
[1744662662885,3.3e-07,84619.0,84618.0,0.59089685]
[1744662663108,3.3e-07,84619.0,84618.0,0.85153839]
[1744662663313,1.3e-07,84631.0,84630.0,0.576322]
[1744662663668,1.3e-07,84631.0,84630.0,0.70888807]
[1744662665008,1.3e-07,84631.0,84630.0,0.70988807]
[1744662666395,1.3e-07,84631.0,84630.0,0.71288807]
[1744662669334,1.3e-07,84631.0,84630.0,0.70988807]
[1744662669587,1.3e-07,84631.0,84630.0,0.70116354]
[1744662669788,0.04820013,84631.0,84630.0,0.70016354]
[1744662670194,0.04820013,84631.0,84630.0,0.69716354]
[1744662671515,0.04820013,84631.0,84630.0,0.70016354]
[1744662672067,0.04820013,84631.0,84630.0,0.69716354]
[1744662672262,0.04820013,84631.0,84630.0,0.70016354]
[1744662678383,0.03204418,84631.0,84630.0,0.70016354]
[1744662685167,0.000844,84637.0,84632.0,0.236317]
[1744662685372,0.000844,84637.0,84633.0,0.35951842]
[1744662685586,0.000844,84637.0,84633.0,0.35715554]
[1744662685946,0.237156,84635.0,84632.0,0.236317]
[1744662686156,0.000846,84635.0,84633.0,0.236314]
[1744662687977,0.000846,84635.0,84633.0,0.238314]
[1744662691029,0.2371552,84634.0,84633.0,0.002]
[1744662691605,0.25911247,84634.0,84633.0,0.002]
[1744662692013,0.0008442,84634.0,84633.0,0.002]
[1744662692414,0.0018442,84634.0,84633.0,0.236314]
[1744662692619,0.0008442,84634.0,84633.0,0.238314]
[1744662692821,0.0028442,84634.0,84633.0,0.238314]
[1744662693212,0.0028442,84634.0,84632.0,0.236316]
[1744662693413,0.0028442,84634.0,84633.0,0.001]
[1744662694362,0.0028442,84634.0,84632.0,0.236316]
[1744662694571,0.0028442,84634.0,84631.0,0.011816]
[1744662694572,0.011816,84625.0,84615.0,0.011818]
[1744662694704,0.011816,84625.0,84619.0,0.011817]
[1744662694705,0.236343,84623.0,84619.0,0.011817]
[1744662694911,0.236343,84623.0,84620.0,0.248166]
[1744662695136,0.236343,84623.0,84621.0,0.236347]
[1744662695514,0.011816,84624.0,84622.0,0.236343]
[1744662695739,0.248155,84624.0,84622.0,0.236343]
[1744662696114,0.236334,84626.0,84621.0,0.011817]
[1744662696321,0.002,84623.0,84621.0,0.248162]
[1744662696522,0.002,84623.0,84622.0,0.248161]
[1744662696726,0.011816,84626.0,84624.0,0.236339]
[1744662696970,0.002,84624.0,84623.0,0.011817]
[1744662697792,0.002,84624.0,84623.0,0.248159]
[1744662697989,0.002,84624.0,84623.0,0.249159]
[1744662698205,0.011816,84628.0,84626.0,0.236333]
[1744662699896,0.011816,84628.0,84626.0,0.237333]
[1744662700101,0.10067088,84632.0,84629.0,0.248141]
[1744662700102,0.0919,84632.0,84629.0,0.248141]
[1744662700299,0.0919,84632.0,84631.0,0.23632]
[1744662700502,0.0008442,84634.0,84633.0,0.236314]
[1744662702178,0.0008442,84634.0,84633.0,0.69951829]
[1744662702506,0.0008442,84634.0,84633.0,0.69715554]
[1744662702848,0.0008442,84634.0,84633.0,0.70912431]
[1744662703674,0.0048442,84634.0,84633.0,0.70912431]
[1744662703890,0.0008442,84634.0,84633.0,0.70912431]
[1744662704286,0.0008442,84634.0,84633.0,0.71012431]
[1744662705174,0.0028442,84634.0,84633.0,0.71012431]
[1744662706818,0.0028442,84634.0,84633.0,0.70912431]
[1744662707068,0.0008442,84634.0,84633.0,0.71112431]
[1744662707557,0.0008442,84634.0,84633.0,0.70912431]
[1744662707934,0.0008442,84634.0,84633.0,0.71312431]
[1744662708139,0.0008442,84634.0,84633.0,0.71412431]
[1744662708670,0.0008442,84634.0,84633.0,0.71312431]
[1744662708823,0.0008442,84634.0,84633.0,0.71512431]
[1744662709030,0.0008442,84634.0,84633.0,0.72966516]
[1744662709771,0.0008442,84634.0,84633.0,0.71512431]
[1744662713994,0.0008442,84634.0,84633.0,0.70315554]
[1744662714950,0.0008442,84634.0,84633.0,0.70115554]
[1744662715189,0.0008442,84634.0,84633.0,0.70215554]
[1744662716027,0.0008442,84634.0,84633.0,0.69815554]
[1744662716454,0.0008442,84634.0,84633.0,0.70115554]
[1744662716807,0.0008442,84634.0,84633.0,0.240314]
[1744662717859,0.0008442,84634.0,84633.0,0.237314]
[1744662718010,0.0479,84633.0,84632.0,0.236316]
[1744662718213,0.059715,84633.0,84628.0,0.011816]
[1744662718435,0.0479,84633.0,84629.0,0.236325]
[1744662718645,0.0479,84633.0,84630.0,0.248138]
[1744662718846,0.0479,84633.0,84631.0,0.236317]
[1744662719217,0.0459,84633.0,84631.0,0.236317]
[1744662719418,0.294031,84633.0,84631.0,0.236319]
[1744662719621,0.294031,84633.0,84628.0,0.001]
[1744662719622,0.23632,84631.0,84628.0,0.001]
[1744662719824,0.011815,84632.0,84629.0,0.236322]
[1744662720027,0.248132,84632.0,84631.0,0.003]
[1744662720263,0.011815,84632.0,84631.0,0.003]
[1744662720403,0.011815,84632.0,84630.0,0.236322]
[1744662720603,0.248133,84632.0,84629.0,0.236325]
[1744662720864,0.248133,84632.0,84629.0,0.248141]
[1744662721062,0.011815,84632.0,84630.0,0.236322]
[1744662721263,0.011815,84632.0,84629.0,0.248141]
[1744662721264,0.23632,84631.0,84629.0,0.248141]
[1744662721567,0.0459,84633.0,84632.0,0.236317]
[1744662721978,0.236325,84629.0,84628.0,0.001]
[1744662722191,0.236325,84629.0,84597.0,0.0004217]
[1744662722192,0.011817,84618.0,84614.0,0.011818]
[1744662722391,0.0497,84617.0,84614.0,9.253e-05]
[1744662722968,0.236361,84616.0,84614.0,0.23645853]
[1744662723165,0.297876,84617.0,84614.0,0.23645853]
[1744662723976,0.236364,84615.0,84614.0,9.253e-05]
[1744662724131,0.283864,84615.0,84614.0,9.253e-05]
[1744662725319,0.286864,84615.0,84614.0,9.253e-05]
[1744662726522,0.2957257,84615.0,84614.0,9.253e-05]
[1744662729703,0.0593617,84615.0,84614.0,9.253e-05]
[1744662729901,0.2957257,84615.0,84614.0,9.253e-05]
[1744662730109,0.0593617,84615.0,84614.0,9.253e-05]
[1744662730304,0.2957257,84615.0,84614.0,9.253e-05]
[1744662732920,0.0593617,84615.0,84614.0,9.253e-05]
[1744662733120,0.2957257,84615.0,84614.0,9.253e-05]
[1744662735180,0.0593617,84615.0,84614.0,9.253e-05]
[1744662735411,0.0118617,84615.0,84614.0,0.23645953]
[1744662735606,0.003,84615.0,84614.0,0.23645953]
[1744662736217,0.003,84615.0,84614.0,0.35730107]
[1744662736416,0.003,84615.0,84614.0,0.40660107]
[1744662737493,0.003,84615.0,84614.0,0.79470107]
[1744662739193,0.011815,84632.0,84629.0,0.248139]
[1744662739562,0.2489712,84634.0,84631.0,0.23632]
[1744662740130,0.236314,84633.0,84630.0,0.248137]
[1744662740791,0.0008442,84634.0,84631.0,0.011816]
[1744662740994,0.0008442,84634.0,84633.0,0.236314]
[1744662741194,0.0068442,84634.0,84633.0,0.236314]
[1744662741393,0.0008442,84634.0,84633.0,0.236314]
[1744662741634,0.0018442,84634.0,84633.0,0.236314]
[1744662741842,0.0018442,84634.0,84632.0,0.236316]
[1744662742069,0.0008442,84634.0,84632.0,0.236316]
[1744662742489,0.0018442,84634.0,84633.0,0.236314]
[1744662742774,0.0008442,84634.0,84632.0,0.236316]
[1744662743191,0.0018442,84634.0,84633.0,0.236314]
[1744662744045,0.0078442,84634.0,84633.0,0.236314]
[1744662744243,0.0068442,84634.0,84633.0,0.236314]
[1744662744445,0.0068442,84634.0,84632.0,0.236316]
[1744662744644,0.0078442,84634.0,84633.0,0.236314]
[1744662745407,0.0068442,84634.0,84633.0,0.236314]
[1744662745564,0.0078442,84634.0,84633.0,0.236314]
[1744662745975,0.0068442,84634.0,84633.0,0.35715554]
[1744662746174,0.0068442,84634.0,84633.0,0.40615554]
[1744662747074,0.0068442,84634.0,84633.0,0.74615554]
[1744662747279,2e-07,84635.0,84634.0,0.576311]
[1744662747474,2e-07,84635.0,84634.0,0.69715254]
[1744662747907,8e-07,84638.0,84637.0,0.34]
[1744662748105,0.0008444,84667.0,84647.0,0.576275]
[1744662748312,0.0008444,84667.0,84647.0,0.69711654]
[1744662749464,0.00098169,84648.0,84647.0,0.69711654]
[1744662749612,0.00098169,84648.0,84647.0,0.576275]
[1744662750853,0.00098169,84648.0,84647.0,0.577275]
[1744662751056,0.00098169,84648.0,84647.0,0.578275]
[1744662751475,0.00098169,84648.0,84647.0,0.238275]
[1744662755881,0.00011169,84648.0,84647.0,0.238275]
[1744662762537,0.00011169,84648.0,84647.0,0.002]
[1744662762914,0.23638369,84648.0,84647.0,0.002]
[1744662763713,0.23638369,84648.0,84647.0,0.001]
[1744662763921,0.23638369,84648.0,84645.0,0.011814]
[1744662763922,0.24819669,84648.0,84645.0,0.011814]
[1744662764126,0.00011169,84648.0,84647.0,0.001]
[1744662764305,0.00011169,84648.0,84647.0,0.237275]
[1744662764507,0.00011169,84648.0,84647.0,0.001]
[1744662765331,0.23638369,84648.0,84647.0,0.001]
[1744662765532,0.011814,84640.0,84635.0,0.236308]
[1744662765802,0.061714,84643.0,84636.0,0.011815]
[1744662765995,0.061714,84643.0,84641.0,0.236291]
[1744662766839,0.061714,84643.0,84635.0,0.004]
[1744662766840,0.248106,84642.0,84635.0,0.004]
[1744662767167,0.248106,84642.0,84636.0,0.236306]
[1744662767168,0.011815,84638.0,84636.0,0.236306]
[1744662767349,0.236299,84639.0,84636.0,0.248121]
[1744662767560,0.248113,84639.0,84636.0,0.248121]
[1744662767753,0.0499,84643.0,84640.0,0.236294]
[1744662767948,0.0499,84643.0,84641.0,0.236291]
[1744662768175,0.0499,84643.0,84642.0,0.236289]
[1744662769547,0.00011169,84648.0,84647.0,0.236275]
[1744662773550,0.00011169,84648.0,84645.0,0.248094]
[1744662773756,0.01192469,84648.0,84645.0,0.011814]
[1744662773951,0.23628,84645.0,84642.0,0.236289]
[1744662774320,0.236278,84646.0,84643.0,0.248099]
[1744662774911,0.248093,84647.0,84644.0,0.236282]
[1744662775115,0.236279,84646.0,84643.0,0.248099]
[1744662775321,0.248108,84641.0,84637.0,0.011815]
[1744662775496,0.011814,84642.0,84638.0,0.236298]
[1744662775898,0.248103,84642.0,84638.0,0.236298]
[1744662776097,0.236285,84644.0,84640.0,0.248108]
[1744662776303,0.24809,84647.0,84643.0,0.236285]
[1744662776482,0.236278,84646.0,84643.0,0.236285]
[1744662776684,0.02195738,84645.0,84643.0,0.236285]
[1744662777304,0.02195738,84644.0,84643.0,0.236285]
[1744662784149,0.00011169,84648.0,84647.0,0.236275]
[1744662784743,0.02206301,84648.0,84647.0,0.236275]
[1744662787198,0.25833701,84648.0,84645.0,0.23628]
[1744662787400,0.02206301,84648.0,84646.0,0.236276]
[1744662787548,0.02195132,84647.0,84646.0,0.236276]
[1744662789138,0.00011169,84648.0,84647.0,0.236275]
[1744662789588,0.02206615,84648.0,84647.0,0.236275]
[1744662791327,0.00011169,84648.0,84647.0,0.236275]
[1744662793394,0.02208031,84648.0,84647.0,0.236275]
[1744662794559,0.00011169,84648.0,84647.0,0.236275]
[1744662801857,0.01192469,84648.0,84632.0,0.0499]
[1744662802089,0.01192469,84648.0,84618.0,0.378166]
[1744662802090,0.011815,84637.0,84626.0,0.0499]
[1744662802311,0.011815,84637.0,84621.0,0.0471]
[1744662802312,0.011816,84629.0,84623.0,0.011817]
[1744662802638,0.236333,84627.0,84624.0,0.011816]
[1744662802783,0.011816,84629.0,84626.0,0.011816]
[1744662802984,0.236328,84628.0,84626.0,0.248148]
[1744662803395,0.02194887,84627.0,84626.0,0.248148]
[1744662804806,0.011816,84631.0,84627.0,0.011816]
[1744662804929,0.011814,84639.0,84632.0,0.011815]
[1744662805132,0.236289,84642.0,84639.0,0.236295]
[1744662805328,0.236293,84641.0,84638.0,0.248114]
[1744662805580,0.248103,84642.0,84638.0,0.248114]
[1744662805786,0.03291354,84640.0,84638.0,0.011815]
[1744662806288,0.02709121,84640.0,84638.0,0.248113]
[1744662806512,0.01097066,84640.0,84639.0,0.236297]
[1744662807756,0.01197066,84640.0,84633.0,0.248126]
[1744662807957,0.003,84640.0,84632.0,0.011815]
[1744662808156,0.001,84640.0,84631.0,0.011816]
[1744662808649,0.001,84640.0,84622.0,0.34]
[1744662808855,0.236342,84623.0,84622.0,0.12084154]
[1744662809114,0.236342,84623.0,84609.0,0.0004221]
[1744662809115,0.011817,84619.0,84610.0,0.011818]
[1744662809319,0.011817,84618.0,84613.0,0.12084154]
[1744662809489,0.011817,84619.0,84613.0,0.12084154]
[1744662809490,0.236359,84617.0,84613.0,0.12084154]
[1744662809689,0.236359,84617.0,84613.0,0.13265954]
[1744662809891,0.236359,84617.0,84614.0,0.011818]
[1744662810084,0.236359,84619.0,84616.0,0.011818]
[1744662810290,0.236359,84619.0,84617.0,0.236358]
[1744662811644,0.236359,84619.0,84617.0,0.239358]
[1744662812284,0.236356,84618.0,84617.0,0.005]
[1744662813180,0.236361,84617.0,84614.0,0.011818]
[1744662813380,0.234361,84617.0,84614.0,0.011818]
[1744662813600,0.231361,84617.0,84614.0,0.248185]
[1744662813817,0.236363,84616.0,84614.0,0.011818]
[1744662814182,0.231361,84617.0,84614.0,0.249184]
[1744662814390,0.236356,84618.0,84616.0,0.011818]
[1744662814946,0.238356,84618.0,84616.0,0.011818]
[1744662815153,0.236356,84618.0,84616.0,0.011818]
[1744662815557,0.236359,84617.0,84614.0,0.249184]
[1744662815769,0.236362,84616.0,84614.0,0.249184]
[1744662815934,0.236364,84615.0,84614.0,0.001]
[1744662816136,0.236378,84610.0,84608.0,0.011819]
[1744662816454,0.236378,84610.0,84605.0,0.0004221]
[1744662817176,0.24818931,84610.0,84605.0,0.0004221]
[1744662817345,0.24818931,84610.0,84609.0,0.0014221]
[1744662818027,0.24818931,84610.0,84609.0,0.0004221]
[1744662818253,0.24918931,84610.0,84609.0,0.0004221]
[1744662818691,0.25418931,84610.0,84609.0,0.0004221]
[1744662818906,0.37503085,84610.0,84609.0,0.0004221]
[1744662819362,0.37403085,84610.0,84609.0,0.0004221]
[1744662819786,0.39788685,84610.0,84609.0,0.0004221]
[1744662821292,0.27704531,84610.0,84609.0,0.0004221]
[1744662821504,0.007,84610.0,84609.0,0.2368031]
[1744662822483,0.007,84610.0,84609.0,0.0004221]
[1744662822661,0.243378,84610.0,84609.0,0.0004221]
[1744662822862,0.339878,84610.0,84609.0,0.0004221]
[1744662823181,0.337878,84610.0,84609.0,0.0004221]
[1744662823391,0.45971954,84610.0,84609.0,0.0004221]
[1744662823829,0.45871954,84610.0,84609.0,0.0004221]
[1744662824022,0.46071954,84610.0,84609.0,0.0004221]
[1744662824203,0.45571954,84610.0,84609.0,0.0004221]
[1744662824458,0.47755735,84610.0,84609.0,0.0004221]
[1744662824634,0.47955735,84610.0,84609.0,0.0004221]
[1744662824827,0.47755735,84610.0,84609.0,0.0004221]
[1744662825192,0.48255735,84610.0,84609.0,0.0004221]
[1744662831016,0.43595735,84610.0,84609.0,0.0004221]
[1744662831217,0.38605735,84610.0,84609.0,0.0004221]
[1744662832552,0.39698702,84610.0,84609.0,0.0004221]
[1744662833743,0.27614548,84610.0,84609.0,0.0004221]
[1744662833942,0.27614548,84610.0,84609.0,0.2368031]
[1744662833943,0.03976748,84610.0,84609.0,0.2368031]
[1744662834343,0.01792967,84610.0,84609.0,0.2368031]
[1744662834551,0.007,84610.0,84609.0,0.2368031]
[1744662837465,0.007,84610.0,84609.0,0.0004221]
[1744662837671,0.243378,84610.0,84609.0,0.0004221]
[1744662838814,0.007,84610.0,84609.0,0.2368031]
[1744662839005,0.007,84610.0,84609.0,0.0004221]
[1744662839945,0.243378,84610.0,84609.0,0.0004221]
[1744662847582,0.34089073,84610.0,84609.0,0.0004221]
[1744662847703,0.236434,84590.0,84588.0,0.0073255]
[1744662847904,0.236432,84591.0,84588.0,0.2437625]
[1744662848121,0.236432,84591.0,84588.0,0.0073255]
[1744662848122,0.236436,84590.0,84588.0,0.0073255]
[1744662848355,0.236436,84590.0,84588.0,0.2437645]
[1744662848783,0.236432,84591.0,84588.0,0.2437645]
[1744662848925,0.236432,84591.0,84588.0,0.2457645]
[1744662849154,0.236432,84591.0,84588.0,0.2467645]
[1744662849953,0.236423,84594.0,84591.0,0.24825]
[1744662850155,0.236431,84591.0,84589.0,0.248257]
[1744662850400,0.236431,84591.0,84589.0,0.011821]
[1744662850712,0.236431,84591.0,84589.0,0.248257]
[1744662851134,0.236431,84591.0,84589.0,0.011821]
[1744662851528,0.236431,84591.0,84589.0,0.012821]
[1744662851691,0.236429,84592.0,84589.0,0.249256]
[1744662851894,0.236429,84592.0,84590.0,0.248252]
[1744662852095,0.236429,84592.0,84590.0,0.011821]
[1744662852883,0.236434,84590.0,84589.0,0.002]
[1744662853438,0.236434,84590.0,84589.0,0.001]
[1744662853643,0.236434,84590.0,84588.0,0.236439]
[1744662853839,0.236432,84591.0,84588.0,0.248261]
[1744662854049,0.236432,84591.0,84589.0,0.001]
[1744662854204,0.236434,84590.0,84589.0,0.001]
[1744662854604,0.236434,84590.0,84588.0,0.248261]
[1744662854825,0.236434,84590.0,84588.0,0.250261]
[1744662855032,0.236434,84590.0,84588.0,0.003]
[1744662855033,0.236437,84589.0,84588.0,0.003]
[1744662855194,0.236437,84589.0,84585.0,9.253e-05]
[1744662855195,0.236443,84587.0,84585.0,9.253e-05]
[1744662855402,0.234443,84587.0,84585.0,9.253e-05]
[1744662855601,0.236441,84588.0,84585.0,0.24836053]
[1744662855799,0.248251,84592.0,84587.0,0.236442]
[1744662856119,0.01182,84602.0,84594.0,0.011821]
[1744662856324,0.236408,84600.0,84597.0,0.01182]
[1744662856527,0.236413,84598.0,84595.0,0.248239]
[1744662857092,0.236415,84597.0,84595.0,0.248239]
[1744662857485,0.248231,84599.0,84595.0,0.248239]
[1744662857827,0.237413,84598.0,84595.0,0.248239]
[1744662858228,0.239413,84598.0,84595.0,0.248239]
[1744662858432,0.236413,84598.0,84595.0,0.248239]
[1744662859587,0.240411,84599.0,84596.0,0.01182]
[1744662859811,0.003,84599.0,84598.0,0.236412]
[1744662860414,0.1398,84604.0,84603.0,0.236398]
[1744662860779,0.248208,84606.0,84603.0,0.236398]
[1744662861018,0.306393,84605.0,84603.0,0.236398]
[1744662861182,0.306393,84605.0,84602.0,0.24822]
[1744662861400,0.318212,84605.0,84602.0,0.24822]
[1744662861597,0.001,84604.0,84603.0,0.236398]
[1744662861854,0.001,84604.0,84602.0,0.24822]
[1744662862972,0.237395,84604.0,84602.0,0.24822]
[1744662863366,0.318212,84605.0,84602.0,0.24822]
[1744662863583,0.074,84605.0,84602.0,0.01182]
[1744662863784,0.071,84605.0,84604.0,0.236395]
[1744662864326,0.07,84605.0,84604.0,0.236395]
[1744662864732,0.073,84605.0,84604.0,0.236395]
[1744662864866,0.07,84605.0,84604.0,0.35723654]
[1744662865086,0.38795,84626.0,84621.0,0.248164]
[1744662865290,0.38795,84626.0,84622.0,0.236344]
[1744662865487,0.151616,84626.0,84622.0,0.236344]
[1744662865693,0.1398,84626.0,84624.0,0.236339]
[1744662865850,0.1398,84626.0,84622.0,0.011817]
[1744662865851,0.236304,84637.0,84633.0,0.248129]
[1744662866050,0.1398,84638.0,84636.0,0.236303]
[1744662866821,0.1418,84649.0,84645.0,0.011814]
[1744662866967,0.1418,84649.0,84642.0,0.011814]
[1744662866968,0.236275,84647.0,84643.0,0.011814]
[1744662867177,0.236284,84644.0,84640.0,0.011814]
[1744662867769,0.011814,84643.0,84640.0,0.011814]
[1744662868468,0.004,84644.0,84642.0,0.236289]
[1744662868671,0.004,84644.0,84641.0,0.248105]
[1744662868872,0.252098,84644.0,84640.0,0.248107]
[1744662869388,0.2481,84643.0,84640.0,0.011814]
[1744662869787,0.2521,84643.0,84640.0,0.011814]
[1744662870191,0.23629,84642.0,84640.0,0.001]
[1744662870526,0.236292,84641.0,84640.0,0.001]
[1744662870708,0.236292,84641.0,84638.0,0.248115]
[1744662871116,0.248106,84641.0,84638.0,0.011815]
[1744662871497,0.236295,84640.0,84637.0,0.236302]
[1744662872652,0.236295,84640.0,84637.0,0.248117]
[1744662872945,0.011816,84625.0,84621.0,0.011817]
[1744662873179,0.011816,84625.0,84617.0,0.011817]
[1744662873718,0.011816,84625.0,84623.0,0.236342]
[1744662873918,0.248154,84625.0,84621.0,0.236347]
[1744662874319,0.236345,84622.0,84619.0,0.236352]
[1744662874522,0.012816,84625.0,84620.0,0.23635]
[1744662874756,0.248161,84623.0,84619.0,0.24817]
[1744662874960,0.248161,84623.0,84620.0,0.236349]
[1744662875175,0.248161,84623.0,84619.0,0.24817]
[1744662875369,0.236346,84622.0,84619.0,0.011817]
[1744662875594,0.236353,84619.0,84616.0,0.35720154]
[1744662875714,0.011817,84619.0,84616.0,0.36902054]
[1744662875922,0.24817,84619.0,84616.0,0.36902054]
[1744662876124,0.011817,84619.0,84617.0,0.236358]
[1744662876324,0.24817,84619.0,84616.0,0.36902054]
[1744662876924,0.011817,84620.0,84617.0,0.236357]
[1744662877129,0.011817,84622.0,84619.0,0.24817]
[1744662877356,0.236348,84621.0,84619.0,0.011817]
[1744662877580,0.011817,84622.0,84617.0,0.011817]
[1744662877788,0.002,84623.0,84621.0,0.236346]
[1744662877988,0.236342,84623.0,84620.0,0.248167]
[1744662878145,0.001,84622.0,84620.0,0.248167]
[1744662878483,0.236347,84622.0,84619.0,0.248169]
[1744662878862,0.237347,84622.0,84619.0,0.248169]
[1744662879066,0.236347,84622.0,84619.0,0.248169]
[1744662879269,0.238347,84622.0,84619.0,0.248169]
[1744662879671,0.236349,84621.0,84618.0,0.236355]
[1744662879858,0.236349,84621.0,84618.0,0.248172]
[1744662880054,0.236349,84621.0,84619.0,0.236353]
[1744662881112,0.011817,84622.0,84620.0,0.23635]
[1744662881512,0.001,84621.0,84619.0,0.24817]
[1744662881713,0.011817,84619.0,84616.0,0.236361]
[1744662881912,0.24817,84619.0,84616.0,0.248179]
[1744662882112,0.24817,84619.0,84617.0,0.236358]
[1744662882667,0.248167,84620.0,84617.0,0.248175]
[1744662882870,0.011817,84621.0,84619.0,0.236352]
[1744662883169,0.250163,84622.0,84620.0,0.23635]
[1744662883688,0.248163,84622.0,84620.0,0.23635]
[1744662883889,0.236347,84621.0,84619.0,0.248169]
[1744662884189,0.236347,84621.0,84614.0,0.236366]
[1744662884190,0.011817,84619.0,84614.0,0.236366]
[1744662884569,0.011817,84619.0,84617.0,0.236358]
[1744662884792,0.248168,84620.0,84617.0,0.236358]
[1744662884983,0.011817,84621.0,84618.0,0.24817]
[1744662885187,0.249166,84621.0,84618.0,0.24817]
[1744662885399,0.248166,84621.0,84618.0,0.24817]
[1744662885725,0.001,84619.0,84618.0,0.24817]
[1744662886593,0.012817,84619.0,84616.0,0.236361]
[1744662886798,0.001,84619.0,84617.0,0.236356]
[1744662887019,0.248167,84620.0,84617.0,0.236356]
[1744662887187,0.001,84621.0,84619.0,0.236351]
[1744662887593,0.248162,84622.0,84619.0,0.236351]
[1744662888337,0.001,84621.0,84619.0,0.236351]
[1744662888963,0.001,84621.0,84619.0,0.248168]
[1744662889169,0.248162,84622.0,84619.0,0.248168]
[1744662890573,0.249162,84622.0,84619.0,0.248168]
[1744662892639,0.001,84622.0,84621.0,0.236347]
[1744662892840,0.001,84622.0,84620.0,0.236348]
[1744662893321,0.001,84622.0,84621.0,0.236347]
[1744662893522,0.001,84622.0,84620.0,0.23635]
[1744662893728,0.236345,84622.0,84619.0,0.24817]
[1744662893983,0.236348,84621.0,84619.0,0.24817]
[1744662894176,0.250162,84622.0,84619.0,0.24817]
[1744662894850,0.248162,84622.0,84619.0,0.24817]
[1744662895282,0.236352,84620.0,84608.0,0.236381]
[1744662895605,0.011817,84621.0,82926.0,0.00153925]
[1744662895606,0.011817,84617.0,84613.0,0.248188]
[1744662895900,0.24817,84619.0,84616.0,0.236359]
[1744662896110,0.236357,84618.0,84615.0,0.24818]